[Event "*** SCC Grand Prix: Titled Tuesday Blitz"]
[Site "Chess.com"]
[Date "2020.09.08"]
[Round "3"]
[White "MikeSailer"]
[Black "elegant285"]
[Result "0-1"]
[WhiteElo "2119"]
[BlackElo "2349"]
[TimeControl "180+1"]
[EndTime "10:31:02 PDT"]
[Termination "elegant285 won by checkmate"]

1. d4 {[%clk 0:03:00.9]} 1... Nf6 {[%clk 0:02:58.9]} 2. Nf3 {[%clk 0:03:01.3]}
2... e6 {[%clk 0:02:58.4]} 3. Bf4 {[%clk 0:03:01.9]} 3... c5 {[%clk 0:02:56.5]}
4. e3 {[%clk 0:03:02.7]} 4... Nc6 {[%clk 0:02:56.5]} 5. Be2 {[%clk 0:03:03]}
5... Qb6 {[%clk 0:02:56.1]} 6. Nc3 {[%clk 0:03:02.2]} 6... a6 {[%clk 0:02:50.3]}
7. Rb1 {[%clk 0:03:01.4]} 7... d5 {[%clk 0:02:47.9]} 8. O-O {[%clk 0:03:00.6]}
8... cxd4 {[%clk 0:02:44.5]} 9. Nxd4 {[%clk 0:02:56.1]} 9... Be7 {[%clk
0:02:41.2]} 10. Nxc6 {[%clk 0:02:51]} 10... bxc6 {[%clk 0:02:37.8]} 11. Na4
{[%clk 0:02:39.4]} 11... Qd8 {[%clk 0:02:17.7]} 12. c4 {[%clk 0:02:39.4]} 12...
O-O {[%clk 0:02:11.8]} 13. Qc2 {[%clk 0:02:25.7]} 13... Bd6 {[%clk 0:02:08.2]}
14. Bxd6 {[%clk 0:02:21.8]} 14... Qxd6 {[%clk 0:02:09.1]} 15. c5 {[%clk
0:02:16.9]} 15... Qc7 {[%clk 0:02:05.9]} 16. Nb6 {[%clk 0:02:13.6]} 16... Ra7
{[%clk 0:02:05.2]} 17. b4 {[%clk 0:02:06.8]} 17... e5 {[%clk 0:01:59.2]} 18.
Nxc8 {[%clk 0:02:04.2]} 18... Rxc8 {[%clk 0:02:00.1]} 19. Qf5 {[%clk 0:01:52.1]}
19... Re8 {[%clk 0:01:42.7]} 20. Bd3 {[%clk 0:01:32.1]} 20... e4 {[%clk
0:01:37.7]} 21. Be2 {[%clk 0:01:28]} 21... Nd7 {[%clk 0:01:26.3]} 22. f3 {[%clk
0:01:11.4]} 22... exf3 {[%clk 0:01:24.6]} 23. Rxf3 {[%clk 0:01:09]} 23... Ne5
{[%clk 0:01:20.2]} 24. Rh3 {[%clk 0:01:04.7]} 24... g6 {[%clk 0:01:18.8]} 25.
Qg5 {[%clk 0:01:00.4]} 25... Qe7 {[%clk 0:01:09.2]} 26. Qh6 {[%clk 0:00:57.2]}
26... f5 {[%clk 0:01:09.1]} 27. a3 {[%clk 0:00:39.7]} 27... a5 {[%clk
0:01:08.5]} 28. Rg3 {[%clk 0:00:33.3]} 28... axb4 {[%clk 0:01:05.4]} 29. axb4
{[%clk 0:00:33.1]} 29... Ra2 {[%clk 0:01:03]} 30. Bf1 {[%clk 0:00:24.4]} 30...
Ng4 {[%clk 0:00:58.7]} 31. Qf4 {[%clk 0:00:23.3]} 31... Qe4 {[%clk 0:00:48.9]}
32. h3 {[%clk 0:00:23.1]} 32... Qxb1 {[%clk 0:00:47.3]} 33. hxg4 {[%clk
0:00:22.8]} 33... fxg4 {[%clk 0:00:45.7]} 34. Qxg4 {[%clk 0:00:16.7]} 34... Ra1
{[%clk 0:00:40.8]} 35. Rf3 {[%clk 0:00:16.1]} 35... Ra7 {[%clk 0:00:35.4]} 36.
Qf4 {[%clk 0:00:10.9]} 36... Rae7 {[%clk 0:00:33.9]} 37. Qf6 {[%clk 0:00:09.6]}
37... Qe4 {[%clk 0:00:30.6]} 38. Qxc6 {[%clk 0:00:08.9]} 38... Qxb4 {[%clk
0:00:24.8]} 39. Qxd5+ {[%clk 0:00:09]} 39... Kg7 {[%clk 0:00:24.7]} 40. c6
{[%clk 0:00:08.5]} 40... Rc7 {[%clk 0:00:22.3]} 41. Bc4 {[%clk 0:00:04.8]} 41...
Qe1+ {[%clk 0:00:18.5]} 42. Kh2 {[%clk 0:00:05.4]} 42... Qh4+ {[%clk 0:00:18.4]}
43. Kg1 {[%clk 0:00:06]} 43... Qe1+ {[%clk 0:00:13.9]} 44. Kh2 {[%clk
0:00:06.5]} 44... Qh4+ {[%clk 0:00:14.8]} 45. Kg1 {[%clk 0:00:07]} 45... Qe7
{[%clk 0:00:11.8]} 46. Qd4+ {[%clk 0:00:03.7]} 46... Qe5 {[%clk 0:00:11.9]} 47.
Qxe5+ {[%clk 0:00:01.6]} 47... Rxe5 {[%clk 0:00:12.8]} 48. Kf2 {[%clk
0:00:01.8]} 48... Rxc6 {[%clk 0:00:11.7]} 49. Bd3 {[%clk 0:00:01.7]} 49... Rd5
{[%clk 0:00:10.6]} 50. Ke2 {[%clk 0:00:02.4]} 50... Rcd6 {[%clk 0:00:10.2]} 51.
Be4 {[%clk 0:00:02.2]} 51... Rd2+ {[%clk 0:00:10.3]} 52. Kf1 {[%clk 0:00:03.1]}
52... Rd1+ {[%clk 0:00:10.5]} 53. Kf2 {[%clk 0:00:03.6]} 53... R6d2+ {[%clk
0:00:10.7]} 54. Kg3 {[%clk 0:00:04.2]} 54... Rg1 {[%clk 0:00:10.6]} 55. Rf4
{[%clk 0:00:04.6]} 55... h5 {[%clk 0:00:10.2]} 56. Bf3 {[%clk 0:00:04.7]} 56...
Re1 {[%clk 0:00:09.2]} 57. Re4 {[%clk 0:00:04.6]} 57... Kh6 {[%clk 0:00:08.7]}
58. Re6 {[%clk 0:00:04.7]} 58... Kg5 {[%clk 0:00:08]} 59. Re5+ {[%clk
0:00:04.3]} 59... Kf6 {[%clk 0:00:07.8]} 60. Re4 {[%clk 0:00:04.9]} 60... Kf5
{[%clk 0:00:07.4]} 61. Rf4+ {[%clk 0:00:05.5]} 61... Kg5 {[%clk 0:00:07.5]} 62.
Re4 {[%clk 0:00:05.9]} 62... h4+ {[%clk 0:00:07]} 63. Kh3 {[%clk 0:00:06.5]}
63... Rh1# {[%clk 0:00:06.5]} 0-1

[Event "*** SCC Grand Prix: Titled Tuesday Blitz"]
[Site "Chess.com"]
[Date "2020.09.08"]
[Round "3"]
[White "SARGISMV"]
[Black "Maghalashvili"]
[Result "1-0"]
[WhiteElo "2503"]
[BlackElo "2733"]
[TimeControl "180+1"]
[EndTime "10:31:23 PDT"]
[Termination "SARGISMV won by resignation"]

1. d4 {[%clk 0:02:59.5]} 1... Nf6 {[%clk 0:02:59.3]} 2. Nf3 {[%clk 0:02:59.2]}
2... c5 {[%clk 0:03:00.2]} 3. d5 {[%clk 0:02:58.9]} 3... g6 {[%clk 0:03:00.8]}
4. c4 {[%clk 0:02:59.1]} 4... Bg7 {[%clk 0:03:01.7]} 5. Nc3 {[%clk 0:02:59.6]}
5... O-O {[%clk 0:03:01.6]} 6. e4 {[%clk 0:02:59.9]} 6... e6 {[%clk 0:03:02.5]}
7. e5 {[%clk 0:02:54]} 7... Ne8 {[%clk 0:02:52.6]} 8. Bf4 {[%clk 0:02:44.4]}
8... Qb6 {[%clk 0:02:31]} 9. Qd2 {[%clk 0:02:41.5]} 9... d6 {[%clk 0:02:26.4]}
10. exd6 {[%clk 0:02:19.1]} 10... Nxd6 {[%clk 0:02:23.5]} 11. dxe6 {[%clk
0:02:19.1]} 11... Re8 {[%clk 0:02:07.3]} 12. Be2 {[%clk 0:01:44]} 12... Bxe6
{[%clk 0:01:55]} 13. Bxd6 {[%clk 0:01:31.1]} 13... Rd8 {[%clk 0:01:55]} 14. Rd1
{[%clk 0:01:05.9]} 14... Nc6 {[%clk 0:01:39.8]} 15. O-O {[%clk 0:00:56.7]} 15...
Nd4 {[%clk 0:01:36.5]} 16. Nxd4 {[%clk 0:00:50.6]} 16... Bxd4 {[%clk 0:01:36.6]}
17. Bg3 {[%clk 0:00:34.7]} 17... Bxf2+ {[%clk 0:01:31.8]} 18. Rxf2 {[%clk
0:00:35.1]} 18... Rxd2 {[%clk 0:01:32.6]} 19. Rxd2 {[%clk 0:00:36]} 19... Rd8
{[%clk 0:01:29.6]} 20. Nd5 {[%clk 0:00:28.5]} 20... Qa5 {[%clk 0:01:23.3]} 21.
Bf3 {[%clk 0:00:21.9]} 21... Kf8 {[%clk 0:00:56.3]} 22. b3 {[%clk 0:00:21.5]}
22... b5 {[%clk 0:00:51.3]} 23. Bc7 {[%clk 0:00:20.4]} 23... Qa3 {[%clk
0:00:42.9]} 24. Bxd8 {[%clk 0:00:20]} 24... bxc4 {[%clk 0:00:41.8]} 25. bxc4
{[%clk 0:00:19.1]} 25... Qc1+ {[%clk 0:00:40]} 26. Rd1 {[%clk 0:00:19.3]} 26...
Qxc4 {[%clk 0:00:40.2]} 27. Ne3 {[%clk 0:00:15.4]} 27... Qc3 {[%clk 0:00:36.8]}
28. Bg5 {[%clk 0:00:14.7]} 28... Kg7 {[%clk 0:00:34.7]} 29. Be2 {[%clk 0:00:13]}
29... f5 {[%clk 0:00:34.1]} 30. h4 {[%clk 0:00:11.1]} 30... h6 {[%clk
0:00:33.8]} 31. Bf4 {[%clk 0:00:11.4]} 31... Qf6 {[%clk 0:00:30.9]} 32. Rd6
{[%clk 0:00:10.9]} 32... Qa1+ {[%clk 0:00:25.2]} 33. Kh2 {[%clk 0:00:10.6]}
33... Kf7 {[%clk 0:00:21.9]} 34. Bc4 {[%clk 0:00:09.3]} 34... Bxc4 {[%clk
0:00:19.5]} 35. Nxc4 {[%clk 0:00:10.2]} 35... g5 {[%clk 0:00:18.2]} 36. hxg5
{[%clk 0:00:09.6]} 36... hxg5 {[%clk 0:00:19.1]} 37. Bxg5 {[%clk 0:00:07.9]}
37... Qh8+ {[%clk 0:00:19]} 38. Kg3 {[%clk 0:00:06.5]} 38... Qc3+ {[%clk
0:00:19.9]} 39. Ne3 {[%clk 0:00:05.5]} 39... Qg7 {[%clk 0:00:16.8]} 40. Kf4
{[%clk 0:00:04.5]} 40... Qc3 {[%clk 0:00:12.4]} 41. Rf6+ {[%clk 0:00:05]} 41...
Kg7 {[%clk 0:00:12.2]} 42. Nxf5+ {[%clk 0:00:05.7]} 42... Kg8 {[%clk 0:00:12.5]}
43. Rf3 {[%clk 0:00:06.4]} 43... Qc4+ {[%clk 0:00:12.8]} 44. Kg3 {[%clk
0:00:06.8]} 44... Qd5 {[%clk 0:00:13.2]} 45. Bf4 {[%clk 0:00:06.9]} 45... Kh7
{[%clk 0:00:12.1]} 46. Kg4 {[%clk 0:00:05.4]} 46... Qe4 {[%clk 0:00:10]} 47.
Rh3+ {[%clk 0:00:05.9]} 47... Kg8 {[%clk 0:00:10.5]} 48. Nh6+ {[%clk 0:00:05.7]}
48... Kg7 {[%clk 0:00:10.7]} 49. Kg5 {[%clk 0:00:06.2]} 49... Qd5+ {[%clk
0:00:09.6]} 50. Nf5+ {[%clk 0:00:06.7]} 50... Kg8 {[%clk 0:00:10.4]} 51. Rh7
{[%clk 0:00:06.4]} 51... Kxh7 {[%clk 0:00:09.8]} 52. Rh6+ {[%clk 0:00:06.8]}
52... Kg8 {[%clk 0:00:09.9]} 53. Kg6 {[%clk 0:00:06.2]} 53... Qe6+ {[%clk
0:00:08.5]} 54. Kg5 {[%clk 0:00:06.2]} 54... Qd5 {[%clk 0:00:08.9]} 55. g4
{[%clk 0:00:07]} 55... c4 {[%clk 0:00:08.6]} 56. Rg6+ {[%clk 0:00:07.5]} 56...
Kf7 {[%clk 0:00:08.3]} 57. Rf6+ {[%clk 0:00:07.7]} 57... Ke8 {[%clk 0:00:08.2]}
58. Kg6 {[%clk 0:00:08.4]} 58... Qg8+ {[%clk 0:00:07.4]} 59. Kh5 {[%clk
0:00:08.2]} 59... c3 {[%clk 0:00:06.5]} 60. Be5 {[%clk 0:00:08.1]} 60... Qh7+
{[%clk 0:00:06.4]} 61. Rh6 {[%clk 0:00:07.9]} 61... Qf7+ {[%clk 0:00:05.9]} 62.
Kg5 {[%clk 0:00:08.5]} 62... Qg8+ {[%clk 0:00:06.2]} 63. Ng7+ {[%clk 0:00:08.4]}
63... Kd7 {[%clk 0:00:06.3]} 64. Bxc3 {[%clk 0:00:09.1]} 64... Qc4 {[%clk
0:00:06.7]} 65. Be5 {[%clk 0:00:09.3]} 65... Qd5 {[%clk 0:00:06.8]} 66. Re6
{[%clk 0:00:09.6]} 66... Qxa2 {[%clk 0:00:06.2]} 67. Kf6 {[%clk 0:00:09.8]}
67... Qf2+ {[%clk 0:00:05.6]} 68. Kg6 {[%clk 0:00:09.9]} 68... a5 {[%clk
0:00:05.8]} 69. Rf6 {[%clk 0:00:10.1]} 69... Qc2+ {[%clk 0:00:04.9]} 70. Nf5
{[%clk 0:00:10.6]} 70... a4 {[%clk 0:00:05.8]} 71. Rf7+ {[%clk 0:00:10.9]} 71...
Ke6 {[%clk 0:00:05]} 72. Bf6 {[%clk 0:00:09.3]} 72... Qc4 {[%clk 0:00:03.6]} 73.
Re7+ {[%clk 0:00:09.7]} 73... Kd5 {[%clk 0:00:04.1]} 74. g5 {[%clk 0:00:10.1]}
74... Kc6 {[%clk 0:00:04.2]} 75. Re5 {[%clk 0:00:10.2]} 75... Qc2 {[%clk
0:00:04.4]} 76. Kf7 {[%clk 0:00:09.8]} 76... Kb7 {[%clk 0:00:05.3]} 77. g6
{[%clk 0:00:10.1]} 77... a3 {[%clk 0:00:05.8]} 78. g7 {[%clk 0:00:10]} 78...
Qc7+ {[%clk 0:00:06.5]} 79. Re7 {[%clk 0:00:10.1]} 79... a2 {[%clk 0:00:05.9]}
80. g8=Q {[%clk 0:00:09.8]} 80... Qxe7+ {[%clk 0:00:05.1]} 81. Kxe7 {[%clk
0:00:09.8]} 81... a1=Q {[%clk 0:00:06]} 82. Bxa1 {[%clk 0:00:09.4]} 82... Kc6
{[%clk 0:00:06.9]} 83. Qe6+ {[%clk 0:00:09.4]} 1-0

[Event "*** SCC Grand Prix: Titled Tuesday Blitz"]
[Site "Chess.com"]
[Date "2020.09.08"]
[Round "3"]
[White "LiemLe"]
[Black "Mazetovic"]
[Result "1/2-1/2"]
[WhiteElo "2971"]
[BlackElo "2635"]
[TimeControl "180+1"]
[EndTime "10:31:31 PDT"]
[Termination "Game drawn by agreement"]

1. d4 {[%clk 0:03:00.9]} 1... Nf6 {[%clk 0:02:59.6]} 2. Nf3 {[%clk 0:02:58.9]}
2... g6 {[%clk 0:02:59.5]} 3. c4 {[%clk 0:02:59.1]} 3... Bg7 {[%clk 0:02:58.7]}
4. Nc3 {[%clk 0:02:59.6]} 4... d6 {[%clk 0:02:58.6]} 5. e4 {[%clk 0:02:59.3]}
5... O-O {[%clk 0:02:58.2]} 6. h3 {[%clk 0:02:59.9]} 6... Nc6 {[%clk 0:02:56.3]}
7. d5 {[%clk 0:02:53.5]} 7... Nb4 {[%clk 0:02:55.2]} 8. a3 {[%clk 0:02:45.8]}
8... Na6 {[%clk 0:02:54.7]} 9. Be3 {[%clk 0:02:46.4]} 9... e6 {[%clk 0:02:53.5]}
10. Bd3 {[%clk 0:02:43.7]} 10... Nc5 {[%clk 0:02:45.7]} 11. Bc2 {[%clk
0:02:42.9]} 11... exd5 {[%clk 0:02:45.9]} 12. exd5 {[%clk 0:02:28.4]} 12... Re8
{[%clk 0:02:41]} 13. O-O {[%clk 0:02:27.7]} 13... Nce4 {[%clk 0:02:26.4]} 14.
Nxe4 {[%clk 0:02:15.1]} 14... Nxe4 {[%clk 0:02:25.8]} 15. Bd4 {[%clk 0:02:15.5]}
15... Ng5 {[%clk 0:01:40.5]} 16. Bxg7 {[%clk 0:02:06.7]} 16... Kxg7 {[%clk
0:01:27.1]} 17. Qd4+ {[%clk 0:01:51.4]} 17... Qf6 {[%clk 0:01:19.8]} 18. Qxf6+
{[%clk 0:01:50.1]} 18... Kxf6 {[%clk 0:01:20]} 19. Nd4 {[%clk 0:01:51]} 19...
Bd7 {[%clk 0:00:47.5]} 20. Rae1 {[%clk 0:01:49]} 20... c5 {[%clk 0:00:36.8]} 21.
dxc6 {[%clk 0:01:31]} 21... bxc6 {[%clk 0:00:36.6]} 22. f4 {[%clk 0:01:19.5]}
22... Ne6 {[%clk 0:00:33]} 23. Rd1 {[%clk 0:01:19.5]} 23... Nxd4 {[%clk
0:00:09.2]} 24. Rxd4 {[%clk 0:01:20.4]} 24... Re2 {[%clk 0:00:06.8]} 25. Rf2
{[%clk 0:01:00.1]} 25... Rxf2 {[%clk 0:00:06.4]} 26. Kxf2 {[%clk 0:01:01]} 26...
Ke7 {[%clk 0:00:06.8]} 27. Ke3 {[%clk 0:00:56.5]} 27... Rb8 {[%clk 0:00:07]} 28.
b3 {[%clk 0:00:52.2]} 28... a5 {[%clk 0:00:06.9]} 29. Rd2 {[%clk 0:00:51.2]}
29... c5 {[%clk 0:00:06.5]} 30. Kd3 {[%clk 0:00:48.9]} 30... Bc6 {[%clk
0:00:06.7]} 31. Kc3 {[%clk 0:00:48.5]} 31... Kd7 {[%clk 0:00:05.8]} 32. Re2
{[%clk 0:00:40.8]} 32... Re8 {[%clk 0:00:05.5]} 33. Rxe8 {[%clk 0:00:40.6]}
33... Kxe8 {[%clk 0:00:05.8]} 34. g3 {[%clk 0:00:41.5]} 34... Ke7 {[%clk
0:00:06.2]} 35. b4 {[%clk 0:00:35.3]} 35... axb4+ {[%clk 0:00:05.7]} 36. axb4
{[%clk 0:00:36.2]} 36... cxb4+ {[%clk 0:00:06.1]} 37. Kxb4 {[%clk 0:00:37.1]}
37... f6 {[%clk 0:00:06.2]} 38. Kc3 {[%clk 0:00:36.2]} 38... Be8 {[%clk
0:00:05.2]} 39. Be4 {[%clk 0:00:34.2]} 39... h6 {[%clk 0:00:05.3]} 40. Bd5
{[%clk 0:00:33.6]} 40... g5 {[%clk 0:00:05.6]} 41. h4 {[%clk 0:00:29.5]} 41...
gxh4 {[%clk 0:00:05.6]} 42. gxh4 {[%clk 0:00:29.2]} 42... Bd7 {[%clk 0:00:06.2]}
43. Kb4 {[%clk 0:00:28.6]} 43... Bg4 {[%clk 0:00:06.4]} 44. Ka5 {[%clk
0:00:28.6]} 44... Bf5 {[%clk 0:00:06.8]} 45. Kb6 {[%clk 0:00:28.5]} 45... Bg4
{[%clk 0:00:07.3]} 46. Kc7 {[%clk 0:00:28.5]} 46... Bf5 {[%clk 0:00:07.7]} 47.
Kc6 {[%clk 0:00:28.3]} 47... Bg4 {[%clk 0:00:07.9]} 48. Kb5 {[%clk 0:00:25.4]}
48... Bd7+ {[%clk 0:00:07.7]} 49. Kb4 {[%clk 0:00:25.8]} 49... Bf5 {[%clk
0:00:08.1]} 50. Kc3 {[%clk 0:00:26.1]} 50... Bd7 {[%clk 0:00:08.3]} 51. Kd4
{[%clk 0:00:26.4]} 51... Bf5 {[%clk 0:00:08.6]} 52. Be4 {[%clk 0:00:26.7]} 52...
Be6 {[%clk 0:00:08.8]} 53. Bd3 {[%clk 0:00:26.6]} 53... Bd7 {[%clk 0:00:08.6]}
54. Ke4 {[%clk 0:00:25.9]} 54... Be6 {[%clk 0:00:08.4]} 55. Kf3 {[%clk
0:00:24.7]} 55... Bd7 {[%clk 0:00:08.7]} 56. Be4 {[%clk 0:00:23]} 56... Be6
{[%clk 0:00:08.7]} 57. Bd5 {[%clk 0:00:23.3]} 57... Bf5 {[%clk 0:00:09.2]} 58.
Ke3 {[%clk 0:00:22.1]} 58... Bd7 {[%clk 0:00:09.3]} 59. Ke4 {[%clk 0:00:22]}
59... Bg4 {[%clk 0:00:07.9]} 60. f5 {[%clk 0:00:21.3]} 60... Bh5 {[%clk
0:00:08]} 61. Kf4 {[%clk 0:00:21.5]} 61... Be8 {[%clk 0:00:08]} 62. Kg4 {[%clk
0:00:21.6]} 62... Kf8 {[%clk 0:00:08.4]} 63. Kf4 {[%clk 0:00:21.1]} 63... Ba4
{[%clk 0:00:08.2]} 64. Be6 {[%clk 0:00:20.4]} 64... Ke7 {[%clk 0:00:08.1]} 65.
Kg4 {[%clk 0:00:20.1]} 65... Be8 {[%clk 0:00:08.1]} 66. Kf4 {[%clk 0:00:20.1]}
66... Ba4 {[%clk 0:00:07.7]} 67. Bd5 {[%clk 0:00:20.2]} 67... Be8 {[%clk
0:00:07.3]} 68. Kg4 {[%clk 0:00:19.2]} 68... Kf8 {[%clk 0:00:07.7]} 69. Be4
{[%clk 0:00:18.7]} 69... Ba4 {[%clk 0:00:07.5]} 70. Bd5 {[%clk 0:00:17.6]} 70...
Bc2 {[%clk 0:00:07.4]} 71. Kf4 {[%clk 0:00:17]} 71... Ke7 {[%clk 0:00:07.6]} 72.
Be4 {[%clk 0:00:16.3]} 72... Bb3 {[%clk 0:00:07.6]} 73. Bd5 {[%clk 0:00:15.7]}
73... Bc2 {[%clk 0:00:08]} 74. Kg4 {[%clk 0:00:15.8]} 74... Kf8 {[%clk
0:00:07.7]} 75. Bf3 {[%clk 0:00:14.8]} 75... Bd3 {[%clk 0:00:06.6]} 76. Bd5
{[%clk 0:00:14.9]} 76... Kg7 {[%clk 0:00:06.1]} 77. Kf4 {[%clk 0:00:15]} 77...
Kf8 {[%clk 0:00:06.1]} 78. Be6 {[%clk 0:00:15.4]} 78... Ke7 {[%clk 0:00:05.7]}
79. Ke3 {[%clk 0:00:16]} 79... Bf1 {[%clk 0:00:05.4]} 80. Kd4 {[%clk 0:00:16.1]}
80... Bh3 {[%clk 0:00:04.1]} 81. Ke4 {[%clk 0:00:15.3]} 81... Bf1 {[%clk
0:00:03.9]} 82. Kf4 {[%clk 0:00:15.5]} 82... Bg2 {[%clk 0:00:03.6]} 83. Kg4
{[%clk 0:00:15.2]} 83... Kf8 {[%clk 0:00:03.9]} 84. Kg3 {[%clk 0:00:15.4]} 84...
Be4 {[%clk 0:00:03.4]} 85. Kf4 {[%clk 0:00:15.6]} 85... Bb1 {[%clk 0:00:03.9]}
86. Bd5 {[%clk 0:00:16.1]} 86... Bc2 {[%clk 0:00:04.1]} 87. Be4 {[%clk
0:00:16.5]} 87... Ba4 {[%clk 0:00:04.6]} 88. Kg4 {[%clk 0:00:16]} 88... Bd7
{[%clk 0:00:05.1]} 89. Kh5 {[%clk 0:00:15.4]} 89... Kg7 {[%clk 0:00:05.1]} 90.
Kg4 {[%clk 0:00:15.7]} 90... Ba4 {[%clk 0:00:05.7]} 91. Kf4 {[%clk 0:00:15.9]}
91... Kf8 {[%clk 0:00:06.3]} 92. Ke3 {[%clk 0:00:15.5]} 92... Ke7 {[%clk
0:00:06.4]} 93. Kd4 {[%clk 0:00:15.7]} 93... Be8 {[%clk 0:00:07]} 1/2-1/2

[Event "*** SCC Grand Prix: Titled Tuesday Blitz"]
[Site "Chess.com"]
[Date "2020.09.08"]
[Round "3"]
[White "pooh2012"]
[Black "manitodeplomo"]
[Result "0-1"]
[WhiteElo "2361"]
[BlackElo "2567"]
[TimeControl "180+1"]
[EndTime "10:31:33 PDT"]
[Termination "manitodeplomo won by resignation"]

1. d4 {[%clk 0:03:00.9]} 1... g6 {[%clk 0:01:19.2]} 2. h4 {[%clk 0:02:58.3]}
2... h5 {[%clk 0:01:16.8]} 3. Nf3 {[%clk 0:02:54.7]} 3... Bg7 {[%clk 0:01:16]}
4. c3 {[%clk 0:02:53]} 4... Nf6 {[%clk 0:01:13.5]} 5. Bg5 {[%clk 0:02:50.2]}
5... d6 {[%clk 0:01:12]} 6. Nbd2 {[%clk 0:02:49.3]} 6... Nbd7 {[%clk 0:01:10.2]}
7. e3 {[%clk 0:02:43.8]} 7... b6 {[%clk 0:01:07.6]} 8. a4 {[%clk 0:02:40.6]}
8... a6 {[%clk 0:01:06.9]} 9. a5 {[%clk 0:02:38.6]} 9... b5 {[%clk 0:01:06.3]}
10. c4 {[%clk 0:02:39.1]} 10... c5 {[%clk 0:00:56.7]} 11. Be2 {[%clk 0:01:27.3]}
11... O-O {[%clk 0:00:50.4]} 12. O-O {[%clk 0:01:16.6]} 12... bxc4 {[%clk
0:00:50.1]} 13. Nxc4 {[%clk 0:01:15]} 13... Rb8 {[%clk 0:00:49.7]} 14. Qc2
{[%clk 0:01:01.7]} 14... Rb4 {[%clk 0:00:47.7]} 15. Rfc1 {[%clk 0:00:48.1]}
15... Qc7 {[%clk 0:00:46.6]} 16. dxc5 {[%clk 0:00:36.5]} 16... Nxc5 {[%clk
0:00:43]} 17. Nb6 {[%clk 0:00:36.1]} 17... Bf5 {[%clk 0:00:41.4]} 18. Qd1 {[%clk
0:00:29.7]} 18... Rxb2 {[%clk 0:00:35.3]} 19. Bxf6 {[%clk 0:00:27.8]} 19... Bxf6
{[%clk 0:00:24.7]} 20. Nd5 {[%clk 0:00:27.3]} 20... Qb8 {[%clk 0:00:24.7]} 21.
Nxf6+ {[%clk 0:00:26.7]} 21... exf6 {[%clk 0:00:25.6]} 22. Nd4 {[%clk 0:00:26]}
22... Bd7 {[%clk 0:00:22.8]} 23. Bc4 {[%clk 0:00:23.1]} 23... Kg7 {[%clk
0:00:22.3]} 24. Qf3 {[%clk 0:00:21.3]} 24... Re8 {[%clk 0:00:21.7]} 25. Qd5
{[%clk 0:00:18.3]} 25... Re7 {[%clk 0:00:20.7]} 26. Qf3 {[%clk 0:00:14.7]} 26...
Bg4 {[%clk 0:00:19.4]} 27. Qg3 {[%clk 0:00:14.1]} 27... Re5 {[%clk 0:00:19.4]}
28. f3 {[%clk 0:00:12.2]} 28... Bd7 {[%clk 0:00:17.4]} 29. Rc3 {[%clk
0:00:07.8]} 29... Qb4 {[%clk 0:00:16.8]} 30. Rac1 {[%clk 0:00:07.3]} 30... Qxa5
{[%clk 0:00:15.8]} 31. Ne2 {[%clk 0:00:07.2]} 31... Qb6 {[%clk 0:00:14.2]} 32.
Nf4 {[%clk 0:00:07.1]} 32... Bc6 {[%clk 0:00:13.6]} 33. Kh2 {[%clk 0:00:06]}
33... Na4 {[%clk 0:00:12.6]} 34. Rd3 {[%clk 0:00:05.1]} 34... Bb7 {[%clk
0:00:12.6]} 35. e4 {[%clk 0:00:04.2]} 35... Nc5 {[%clk 0:00:12.1]} 36. Rdc3
{[%clk 0:00:03.7]} 36... a5 {[%clk 0:00:12.6]} 37. Bd5 {[%clk 0:00:03.9]} 37...
Bc8 {[%clk 0:00:12.1]} 38. Bc4 {[%clk 0:00:03.7]} 38... Bb7 {[%clk 0:00:11.9]}
39. Bd5 {[%clk 0:00:03.2]} 39... Bc8 {[%clk 0:00:11.4]} 40. Bc4 {[%clk
0:00:03.6]} 40... Be6 {[%clk 0:00:11.6]} 41. Bd5 {[%clk 0:00:03.7]} 41... Bxd5
{[%clk 0:00:11]} 42. Nxd5 {[%clk 0:00:03.9]} 42... Qd8 {[%clk 0:00:11.2]} 43.
Ra3 {[%clk 0:00:03.8]} 43... a4 {[%clk 0:00:10.7]} 44. Rca1 {[%clk 0:00:03.9]}
44... Rb3 {[%clk 0:00:09.6]} 45. Rxa4 {[%clk 0:00:03.6]} 45... Nxa4 {[%clk
0:00:09.3]} 46. Rxa4 {[%clk 0:00:04.5]} 46... Rd3 {[%clk 0:00:08.3]} 47. Ra7
{[%clk 0:00:04.3]} 47... Rexd5 {[%clk 0:00:08]} 48. exd5 {[%clk 0:00:05.2]}
48... Rxd5 {[%clk 0:00:08.5]} 49. Ra4 {[%clk 0:00:05.6]} 49... Re5 {[%clk
0:00:08]} 50. Rf4 {[%clk 0:00:05.6]} 50... Qe7 {[%clk 0:00:08.4]} 51. Rd4 {[%clk
0:00:05.9]} 51... Qe6 {[%clk 0:00:08.1]} 52. Qf4 {[%clk 0:00:05.9]} 52... Rd5
{[%clk 0:00:07]} 53. Re4 {[%clk 0:00:05.9]} 53... Re5 {[%clk 0:00:07.2]} 54. Rd4
{[%clk 0:00:06.4]} 54... Qe7 {[%clk 0:00:05.3]} 55. Qd2 {[%clk 0:00:06.4]} 55...
Re6 {[%clk 0:00:05.6]} 56. Qf4 {[%clk 0:00:06.2]} 56... f5 {[%clk 0:00:06]} 57.
Qg3 {[%clk 0:00:06.3]} 57... Qf6 {[%clk 0:00:05.9]} 58. Qf4 {[%clk 0:00:06.4]}
58... Qe5 {[%clk 0:00:05.5]} 59. Kh3 {[%clk 0:00:05.8]} 59... Qxf4 {[%clk
0:00:05.6]} 60. Rxf4 {[%clk 0:00:06.7]} 60... Kf6 {[%clk 0:00:06.2]} 61. Rd4
{[%clk 0:00:06.9]} 61... Ke5 {[%clk 0:00:06.4]} 62. Rd3 {[%clk 0:00:07.3]} 62...
d5 {[%clk 0:00:07]} 63. Kg3 {[%clk 0:00:07.5]} 63... f4+ {[%clk 0:00:07]} 64.
Kf2 {[%clk 0:00:07.8]} 64... d4 {[%clk 0:00:07.6]} 65. Ra3 {[%clk 0:00:07.5]}
65... Rc6 {[%clk 0:00:07.6]} 66. Ke2 {[%clk 0:00:07.5]} 66... Rc3 {[%clk
0:00:07.2]} 67. Ra5+ {[%clk 0:00:06.7]} 67... Kf6 {[%clk 0:00:07.3]} 68. Ra4
{[%clk 0:00:06.6]} 68... Rc2+ {[%clk 0:00:07.2]} 69. Kd3 {[%clk 0:00:06.9]}
69... Rxg2 {[%clk 0:00:06.9]} 70. Rxd4 {[%clk 0:00:07]} 70... g5 {[%clk
0:00:06.4]} 71. hxg5+ {[%clk 0:00:06.8]} 71... Kxg5 {[%clk 0:00:07.3]} 72. Rd5+
{[%clk 0:00:06.5]} 72... f5 {[%clk 0:00:07]} 73. Rd8 {[%clk 0:00:06.8]} 73...
Kh4 {[%clk 0:00:06.5]} 74. Rf8 {[%clk 0:00:06.3]} 74... Kg3 {[%clk 0:00:05.6]}
75. Rxf5 {[%clk 0:00:05.5]} 75... h4 {[%clk 0:00:05.2]} 76. Rh5 {[%clk
0:00:02.6]} 76... Kxf3 {[%clk 0:00:02.4]} 77. Rxh4 {[%clk 0:00:02.4]} 77... Rg7
{[%clk 0:00:01.9]} 78. Kd2 {[%clk 0:00:02.7]} 78... Kg3 {[%clk 0:00:02.3]} 79.
Rh6 {[%clk 0:00:02.5]} 79... Rd7+ {[%clk 0:00:02.8]} 80. Ke2 {[%clk 0:00:02.6]}
80... f3+ {[%clk 0:00:03.3]} 81. Ke3 {[%clk 0:00:03]} 81... Re7+ {[%clk
0:00:03.6]} 82. Kd2 {[%clk 0:00:03]} 82... Kf2 {[%clk 0:00:04.5]} 83. Rf6 {[%clk
0:00:03.1]} 83... Rd7+ {[%clk 0:00:04.5]} 84. Kc2 {[%clk 0:00:03.6]} 84... Ke2
{[%clk 0:00:04.8]} 85. Re6+ {[%clk 0:00:03.7]} 85... Kf1 {[%clk 0:00:05.3]} 86.
Re3 {[%clk 0:00:03.5]} 86... f2 {[%clk 0:00:05.6]} 87. Rg3 {[%clk 0:00:03.8]}
87... Rd5 {[%clk 0:00:05.2]} 88. Re3 {[%clk 0:00:03.6]} 88... Kg2 {[%clk
0:00:05.2]} 89. Re2 {[%clk 0:00:03.8]} 89... Kf3 {[%clk 0:00:04.9]} 0-1